bitfinex/quotes_ETHUSD_20251126
["timestamp","ask_amount","ask_price","bid_price","bid_amount"]
[1764180991606,1.13109811,3044.5,3044.0,0.001]
[1764180992309,1.13109811,3044.5,3044.1,0.1908]
[1764180992513,6.56900742,3044.6,3044.1,0.1908]
[1764180993111,6.56900742,3044.6,3044.2,0.1]
[1764180993282,9.85351113,3044.6,3044.2,0.1]
[1764180993479,0.405504,3044.5,3044.1,0.2908]
[1764180993711,3.28471948,3044.4,3044.1,0.7699]
[1764180993919,0.002,3044.7,3044.1,0.7699]
[1764180994111,3.28450371,3044.6,3044.3,0.4665]
[1764180994317,6.56900742,3044.6,3044.1,0.2908]
[1764180994616,6.56900742,3044.6,3044.1,0.7699]
[1764180994991,3.28644008,3044.7,3044.5,0.4665]
[1764180995183,6.57088016,3044.7,3044.2,0.4791]
[1764180995385,3.28644008,3044.7,3044.2,0.4791]
[1764180995592,0.002,3045.3,3044.6,3.75097003]
[1764180995815,0.002,3045.3,3045.2,0.6573]
[1764180996121,0.002,3045.3,3045.2,1.1364]
[1764180996519,0.002,3045.3,3045.2,0.6573]
[1764180996720,0.002,3045.3,3045.2,1.1364]
[1764180996925,3.28261339,3046.4,3045.2,1.1364]
[1764180996926,3.28245527,3046.5,3045.3,0.4791]
[1764180997128,0.30668784,3046.4,3045.4,0.4665]
[1764180997424,9.84736581,3046.5,3045.4,0.4665]
[1764180997425,0.30668784,3046.3,3045.4,0.4665]
[1764180997596,3.58954185,3046.2,3045.5,0.4791]
[1764180997798,6.56570802,3046.2,3045.5,0.4791]
[1764180997998,10.78339205,3046.2,3045.2,0.1908]
[1764180998304,0.405504,3046.0,3045.2,0.6699]
[1764180998498,0.405504,3046.1,3045.2,0.6699]
[1764180998703,0.405504,3046.1,3045.3,0.4791]
[1764180999807,0.405504,3045.9,3045.3,0.4791]
[1764181000400,3.28299409,3046.0,3045.3,0.4791]
[1764181000722,6.56598818,3046.0,3045.3,0.4791]
[1764181001429,6.56598818,3046.0,3042.8,0.05]
[1764181001430,0.1388,3045.4,3042.8,0.05]
[1764181001601,0.1388,3045.4,3042.5,0.001]
[1764181001602,0.405504,3045.8,3044.2,0.4791]
[1764181001921,3.28322966,3045.8,3045.3,0.1908]
[1764181002302,3.28277854,3046.2,3045.4,0.4791]
[1764181002505,0.405504,3046.1,3045.4,0.4791]
[1764181002711,0.405504,3046.1,3045.3,0.6699]
[1764181003117,0.405504,3046.1,3045.4,0.4791]
[1764181003402,0.405504,3046.1,3045.3,0.1908]
[1764181003607,1.43088796,3046.1,3045.3,0.4048]
[1764181003807,9.84898227,3046.0,3045.3,0.214]
[1764181004317,0.405504,3045.9,3045.3,0.4601]
[1764181004525,0.405504,3045.9,3045.2,0.214]
[1764181004811,0.405504,3045.9,3045.1,0.1908]
[1764181004812,1.43095263,3045.9,3045.1,0.1908]
[1764181005418,6.56577262,3046.1,3045.1,0.1908]
[1764181005613,6.56577262,3046.1,3044.9,0.6741]
[1764181005614,0.30543173,3046.0,3044.9,0.214]
[1764181005815,8.59899795,3045.7,3044.9,0.214]
[1764181006337,0.30550468,3045.6,3044.9,0.214]
[1764181006540,8.73779795,3045.7,3044.9,0.214]
[1764181006709,0.44430486,3045.6,3044.9,0.214]
[1764181007037,9.84962898,3045.8,3044.9,0.6741]
[1764181007238,0.30549415,3045.7,3044.9,0.6741]
[1764181007438,6.56641932,3045.8,3044.9,0.214]
[1764181007620,0.285504,3045.6,3044.9,0.214]
[1764181008026,6.56706616,3045.5,3044.9,0.214]
[1764181008228,9.85059924,3045.5,3044.9,0.214]
[1764181008728,6.56706616,3045.5,3044.9,0.214]
[1764181009122,9.85059924,3045.5,3044.9,0.214]
[1764181010224,3.4219378,3045.9,3044.9,0.214]
[1764181010225,0.405504,3045.6,3044.9,0.214]
[1764181010629,9.84995238,3045.7,3045.0,0.4601]
[1764181011033,6.56663492,3045.7,3045.0,0.4601]
[1764181011513,9.84995238,3045.7,3045.0,0.4601]
[1764181011940,9.84995238,3045.7,3044.9,0.214]
[1764181012143,6.97170774,3045.9,3044.9,0.6741]
[1764181012310,0.405504,3045.7,3044.9,0.66905]
[1764181012514,0.405504,3045.7,3044.9,1.07943793]
[1764181012707,3.28324924,3045.8,3044.9,1.07943793]
[1764181012708,0.405504,3045.8,3045.0,0.5601]
[1764181013212,0.30588606,3045.7,3045.0,0.4601]
[1764181013417,0.405504,3045.8,3045.0,0.4601]
[1764181014242,0.405504,3045.6,3044.6,0.1941]
[1764181014425,0.405504,3045.6,3044.8,0.214]
[1764181014630,0.405504,3045.4,3044.8,0.214]
[1764181014816,0.405504,3045.6,3044.8,0.214]
[1764181015017,0.405504,3045.4,3044.8,0.214]
[1764181015425,0.30609332,3045.3,3044.8,0.214]
[1764181015642,0.405504,3045.4,3044.8,0.214]
[1764181016026,9.84995238,3045.7,3044.9,0.5601]
[1764181016210,3.28353308,3045.5,3044.9,0.4601]
[1764181016431,3.28353308,3045.5,3045.3,0.1]
[1764181016833,6.56706616,3045.5,3045.2,0.1]
[1764181017146,6.56620374,3045.9,3045.4,0.5752]
[1764181017323,0.30625856,3045.8,3045.4,0.5752]
[1764181017530,9.84930561,3045.9,3045.0,0.1]
[1764181017729,0.30625796,3045.8,3045.3,0.1]
[1764181017933,9.84930561,3045.9,3044.8,3.49827919]
[1764181017934,9.84930561,3045.9,3045.0,0.4601]
[1764181018247,3.28331746,3045.7,3045.0,0.4601]
[1764181018452,6.56663492,3045.7,3045.2,0.1]
[1764181018648,0.30638366,3045.6,3045.0,0.4601]
[1764181018853,9.84995238,3045.7,3045.0,0.5601]
[1764181019020,0.30638884,3045.6,3045.0,0.5601]
[1764181019219,9.84995238,3045.7,3044.8,0.214]
[1764181019455,0.30641959,3045.6,3044.8,0.6292641]
[1764181019652,9.84995238,3045.7,3044.8,0.6292641]
[1764181019852,0.30641959,3045.6,3044.8,0.6292641]
[1764181020023,6.56663492,3045.7,3044.9,0.4601]
[1764181020218,6.56706616,3045.5,3044.9,0.4601]
[1764181020460,3.28353308,3045.5,3044.9,0.4601]
[1764181020755,0.002,3046.2,3044.9,0.4601]
[1764181020756,9.98778227,3046.0,3044.9,0.4601]
[1764181021049,0.71203022,3045.9,3044.9,0.4601]
[1764181021253,0.405504,3045.7,3044.9,0.4601]
[1764181021551,0.405504,3045.5,3044.6,0.1941]
[1764181021750,0.30652622,3045.4,3044.7,0.214]
[1764181021934,0.30652622,3045.3,3044.7,0.214]
[1764181022131,0.30652622,3045.2,3044.7,0.214]
[1764181022332,3.2839644,3045.1,3044.7,0.214]
[1764181022532,3.2839644,3045.1,3044.7,0.6741]
[1764181022854,6.5679288,3045.1,3044.7,0.214]
[1764181023063,3.2839644,3045.1,3044.7,0.214]
[1764181023359,0.30703677,3045.0,3044.7,0.214]
[1764181023526,6.5679288,3045.1,3044.7,0.214]
[1764181024336,3.28366157,3045.4,3044.7,0.214]
[1764181024337,3.5912497,3045.0,3044.7,0.214]
[1764181024544,6.56816292,3045.0,3044.2,0.1941]
[1764181024746,9.85224438,3045.0,3044.2,0.54222416]
[1764181024946,0.30719866,3044.9,3044.3,0.214]
[1764181025262,6.56816292,3045.0,3044.3,0.214]
[1764181025263,0.30719866,3044.8,3044.3,0.214]
[1764181025456,6.56816292,3045.0,3044.3,0.214]
[1764181025657,0.30724935,3044.9,3044.3,0.214]
[1764181025861,0.30724935,3044.8,3044.3,0.6972]
[1764181026158,3.28381189,3045.3,3044.3,0.6972]
[1764181026159,0.1388,3046.4,3044.9,0.4766]
[1764181026340,6.56598818,3046.0,3045.2,3.76045438]
[1764181026536,6.56598818,3046.0,3045.3,0.37604544]
[1764181026537,0.30718287,3045.9,3045.3,0.37604544]
[1764181026743,3.28292752,3046.1,3045.4,0.4832]
[1764181027037,6.56585504,3046.1,3045.4,0.4832]
[1764181028060,6.56585504,3046.1,3045.3,0.183]
[1764181028061,9.84878256,3046.1,3045.3,0.183]
[1764181028264,3.28310187,3045.9,3045.1,0.183]
[1764181028436,6.56620374,3045.9,3045.1,0.183]
[1764181028759,0.405504,3045.8,3045.1,0.59943299]
[1764181028992,0.544304,3045.8,3045.1,0.214]
[1764181029548,0.405504,3045.8,3045.1,0.397]
[1764181030242,0.405504,3046.0,3045.1,0.8802]
[1764181030449,0.2,3045.2,3045.1,4.1641644]
[1764181030652,0.2,3045.2,3045.1,1.14183285]
[1764181030866,0.2,3045.2,3045.1,1.61843285]
[1764181031045,0.2,3045.2,3045.1,0.8736]
[1764181031451,0.2,3045.2,3045.0,0.214]
[1764181032373,3.2839644,3045.1,3045.0,0.214]
[1764181033051,6.76781772,3045.2,3045.0,0.214]
[1764181033254,0.2,3045.2,3045.0,0.214]
[1764181033440,3.48386914,3045.2,3045.0,0.214]
[1764181033641,3.48386914,3045.2,3045.1,0.4766]
[1764181033642,0.2,3045.2,3045.1,0.4766]
[1764181033843,0.2,3045.2,3045.1,0.92238722]
[1764181034076,0.2,3045.2,3045.1,0.4766]
[1764181034250,3.48385656,3045.2,3045.0,0.214]
[1764181035174,0.2,3045.2,3045.1,0.4777]
[1764181035741,0.2,3045.2,3045.1,0.9581]
[1764181035941,0.002,3045.8,3045.2,13.805153]
[1764181036143,0.002,3045.8,3045.7,0.4777]
[1764181036373,0.002,3045.8,3045.7,0.6917]
[1764181036673,0.002,3045.8,3045.7,1.1721]
[1764181037446,0.002,3045.8,3045.7,4.45541746]
[1764181037644,0.002,3045.8,3045.7,1.1721]
[1764181037954,0.002,3045.8,3045.7,1.61764748]
[1764181038582,0.002,3045.8,3045.7,0.6917]
[1764181039583,0.3408,3045.8,3044.9,0.4804]
[1764181039742,0.3408,3045.8,3045.0,0.6944]
[1764181040370,6.56663492,3045.7,3045.0,0.6944]
[1764181040980,9.84995238,3045.7,3045.0,0.214]
[1764181041185,0.744304,3045.6,3045.0,0.214]
[1764181041559,0.614604,3045.1,3045.0,0.214]
[1764181041768,0.614604,3045.1,3044.3,0.001]
[1764181041769,0.405504,3045.0,3044.3,0.001]
[1764181041945,0.405504,3045.0,3043.9,0.001]
[1764181041946,8.61238446,3044.2,3043.9,0.001]
[1764181042150,9.54707857,3044.2,3043.9,0.001]
[1764181042464,7.87635715,3043.9,3043.6,0.001]
[1764181042673,4.62845715,3043.9,3043.6,0.001]
[1764181042865,4.96295715,3043.9,3043.6,0.001]
[1764181043178,4.41635715,3043.9,3043.6,0.001]
[1764181043350,4.96295715,3043.9,3043.6,0.001]
[1764181044377,0.405504,3044.3,3043.6,0.001]
[1764181044577,6.9751682,3044.3,3043.6,0.001]
[1764181044983,3.28482738,3044.3,3043.6,0.4814]
[1764181045153,6.56951704,3044.4,3043.9,0.4804]
[1764181045354,3.28475852,3044.4,3044.0,0.214]
[1764181045794,3.28407224,3045.0,3044.3,0.4777]
[1764181046081,6.56814448,3045.0,3044.1,0.6637]
[1764181046852,3.28407224,3045.0,3044.2,0.41627785]
[1764181047168,6.56663492,3045.7,3044.2,0.89667785]
[1764181047695,6.56663492,3045.7,3044.2,0.4804]
[1764181047696,0.3358,3045.6,3044.2,0.4804]
[1764181048079,0.405504,3045.5,3044.2,0.4804]
[1764181048584,0.002,3045.8,3044.3,6.56965476]
[1764181048792,3.61911746,3045.7,3044.3,3.28482738]
[1764181048955,10.1857758,3045.7,3044.4,0.4804]
[1764181049153,10.1857758,3045.7,3044.5,0.59052274]
[1764181049390,0.405504,3045.6,3044.5,0.59052274]
[1764181049596,1.46689811,3045.6,3044.5,0.214]
[1764181049817,1.46689811,3045.6,3044.1,0.1833]
[1764181049963,1.13109811,3045.2,3044.5,0.214]
[1764181050303,1.13109811,3045.2,3043.9,0.4814]
[1764181050304,0.405504,3044.5,3043.9,0.001]
[1764181050664,0.405504,3044.3,3043.9,0.001]
[1764181051270,0.741304,3044.3,3043.9,0.001]
[1764181051475,0.405504,3044.3,3043.9,0.001]
[1764181052300,8.94818446,3044.0,3043.9,0.001]
[1764181052665,6.90273382,3045.6,3044.3,3.94581083]
[1764181053012,6.56695091,3045.6,3044.4,0.4804]
[1764181053177,6.56695091,3045.6,3044.5,3.3654]
[1764181053506,6.56675702,3045.7,3044.5,3.3654]
[1764181053689,6.56675702,3045.7,3044.7,8.299353]
[1764181053873,6.56675702,3045.7,3044.7,6.56217]
[1764181054066,9.85013553,3045.7,3044.8,0.4804]
[1764181054262,0.098,3044.9,3043.9,0.4814]
[1764181054565,0.405504,3044.8,3043.9,0.001]
[1764181054767,6.56879166,3044.7,3043.9,0.001]
[1764181056064,6.97416548,3044.8,3043.9,0.001]
[1764181056264,10.25849622,3044.8,3043.9,0.001]
[1764181056490,0.405504,3044.6,3043.9,0.001]
[1764181056685,0.405504,3044.7,3043.9,0.4814]
[1764181056896,3.2839644,3045.1,3044.6,0.1833]
[1764181057083,3.28390485,3045.2,3044.6,0.1833]
[1764181057664,6.56663492,3045.7,3044.7,0.4804]
[1764181057915,0.30572007,3045.6,3044.7,0.4804]
[1764181058069,6.56663492,3045.7,3044.7,0.4804]
[1764181058397,0.405504,3045.6,3044.7,0.4804]
[1764181058569,0.405504,3045.6,3044.0,0.1833]
[1764181058570,0.098,3044.8,3044.0,0.1833]
[1764181058906,0.405504,3044.6,3044.0,0.3973]
[1764181059380,0.405504,3044.6,3044.1,0.1833]
[1764181060103,0.741304,3044.6,3044.0,0.214]
[1764181060264,0.405504,3044.4,3044.0,0.214]
[1764181060464,0.405504,3044.2,3043.9,0.001]
[1764181060676,6.57008638,3044.1,3043.9,0.001]
[1764181061096,0.741204,3044.0,3043.9,0.001]
[1764181061478,0.405504,3044.0,3043.9,0.001]
[1764181062186,0.405504,3044.1,3043.9,0.001]
[1764181062566,0.741204,3044.1,3043.9,0.001]
[1764181063002,3.69065511,3044.0,3043.9,0.001]
[1764181063175,0.46572671,3044.0,3043.9,0.001]
[1764181063495,0.405504,3044.1,3043.9,0.001]
[1764181063904,0.405504,3044.3,3043.9,0.001]
[1764181064495,0.405504,3044.4,3043.9,0.001]
[1764181064898,0.2121,3044.0,3043.9,0.001]
[1764181065067,3.90275511,3044.0,3043.9,0.001]
[1764181065267,4.23725511,3044.0,3043.9,0.001]
[1764181065602,3.90275511,3044.0,3043.9,0.001]
[1764181067383,0.72559411,3044.5,3043.9,0.001]
[1764181067582,0.30579289,3044.4,3043.9,0.001]
[1764181067909,0.72559411,3044.5,3043.9,0.001]
[1764181068089,0.30579167,3044.4,3043.9,0.001]
[1764181068398,0.405504,3044.4,3043.9,0.001]
[1764181068600,0.30597442,3044.3,3043.9,0.001]
[1764181068905,0.405504,3044.4,3043.9,0.001]
[1764181069084,0.3061764,3044.3,3043.9,0.001]
[1764181069399,0.405504,3044.1,3043.9,0.001]
[1764181069912,3.28453102,3044.6,3043.9,0.4525]
[1764181069913,0.405504,3044.5,3043.9,0.4525]
[1764181070072,0.405504,3044.3,3044.0,0.4791]
[1764181070270,6.56900742,3044.6,3043.9,0.001]
[1764181070271,0.405504,3044.5,3043.9,0.001]
[1764181070506,0.405504,3044.3,3043.9,0.001]
[1764181070799,0.405504,3044.5,3043.9,0.001]
[1764181070975,0.405504,3044.3,3043.9,0.001]
[1764181071376,0.405504,3044.1,3043.9,0.001]
[1764181073506,4.20934309,3044.0,3043.9,0.001]
[1764181074900,3.99724309,3044.0,3043.9,0.001]
[1764181075102,4.9361372,3044.0,3043.9,0.001]
[1764181075896,4.9361372,3044.0,3043.8,0.001]
[1764181075897,1.13109811,3043.9,3043.8,0.001]
[1764181076102,1.43768609,3043.9,3043.8,0.001]
[1764181076299,1.57748609,3043.9,3043.8,0.001]
[1764181077197,1.78968609,3043.9,3043.8,0.001]
[1764181077596,4.86274513,3043.9,3043.8,0.001]
[1764181077796,4.72294513,3043.9,3043.8,0.001]
[1764181078001,5.07614513,3043.9,3043.8,0.001]
[1764181078399,4.86274513,3043.9,3043.8,0.001]
[1764181078786,5.07614513,3043.9,3043.8,0.001]
[1764181079016,4.86274513,3043.9,3043.8,0.001]
[1764181079507,1.57748609,3043.9,3043.8,0.001]
[1764181079709,4.72294513,3043.9,3043.8,0.001]
[1764181079900,3.99735102,3043.9,3043.8,0.001]
[1764181080714,5.07494513,3043.9,3043.8,0.001]
[1764181080912,5.40944513,3043.9,3043.8,0.001]
[1764181082114,5.40944513,3043.9,3043.6,0.001]
[1764181082115,0.405504,3043.7,3043.6,0.001]
[1764181082415,9.46687244,3043.7,3043.6,0.001]
[1764181082787,9.68087244,3043.7,3043.6,0.001]
[1764181083213,10.40646655,3043.7,3043.5,0.001]
[1764181083390,1.13109811,3043.3,3043.2,0.001]
[1764181083589,1.13109811,3043.3,3042.5,0.001]
[1764181083590,13.53076655,3043.3,3042.5,0.001]
[1764181083888,3.865504,3042.7,3042.5,0.001]
[1764181084085,3.865504,3042.7,3040.4,3.28894238]
[1764181084086,1.13109811,3042.5,3041.1,0.1827]
[1764181084286,0.407604,3042.3,3041.1,0.1827]
[1764181084522,0.71419198,3042.3,3041.1,0.6342]
[1764181084693,1.04889198,3042.3,3041.1,0.6342]
[1764181085221,0.71209198,3042.3,3042.2,0.4801]
[1764181085631,0.71209198,3042.3,3042.2,0.9316]
[1764181085830,3.99907879,3042.3,3042.2,0.4801]
[1764181085991,3.99907879,3042.3,3042.2,0.001]
[1764181086712,3.69249081,3042.3,3042.2,0.001]
[1764181087018,4.41808492,3042.3,3042.2,0.001]
[1764181087226,4.63128492,3042.3,3042.2,0.001]
[1764181087922,4.96478492,3042.3,3042.2,0.001]
[1764181088110,5.27080915,3042.3,3042.2,0.001]
[1764181088309,0.405504,3042.1,3041.2,0.456]
[1764181088533,0.405504,3041.9,3041.2,0.456]
[1764181088833,0.405504,3041.9,3041.1,0.1827]
[1764181089007,1.13109811,3041.6,3040.9,0.456]
[1764181089711,0.72559411,3041.4,3040.9,0.456]
[1764181089914,0.405504,3041.3,3040.8,0.1827]
[1764181090336,8.20688046,3042.2,3041.2,0.6706]
[1764181090622,3.28644669,3042.8,3041.3,0.4879]
[1764181090623,8.20688046,3042.4,3041.3,0.4879]
[1764181090810,1.03111263,3042.3,3041.4,0.456]
[1764181090995,0.72559411,3042.3,3041.4,0.456]
[1764181091191,0.405504,3042.2,3041.5,0.456]
[1764181091620,0.405504,3042.2,3041.2,0.1827]
[1764181091621,0.405504,3042.2,3041.3,0.456]
[1764181091792,1.13109811,3041.9,3041.3,0.456]
[1764181091992,3.28731097,3042.0,3041.8,0.4879]
[1764181092207,0.405504,3041.9,3041.8,0.4879]
[1764181092422,0.405504,3041.9,3041.8,0.9439]
[1764181092720,0.72559411,3042.0,3041.8,0.9439]
[1764181092933,6.5746141,3042.1,3041.9,0.9439]
[1764181093118,9.86191871,3042.1,3041.3,0.456]
[1764181093427,0.405504,3042.0,3041.3,0.456]
[1764181093734,6.9786134,3042.7,3042.0,0.4879]
[1764181093940,6.5731094,3042.7,3042.0,0.4879]
[1764181094110,0.097,3042.6,3041.2,0.1827]
[1764181094309,0.72559411,3042.4,3041.5,0.4502]
[1764181094544,0.405504,3042.3,3041.2,0.1827]
[1764181094846,0.405504,3041.9,3041.2,0.6329]
[1764181095011,1.13109811,3042.4,3041.3,0.4502]
[1764181095210,0.405504,3042.0,3041.3,0.4502]
[1764181095730,9.86225712,3041.9,3041.3,0.4502]
[1764181096112,6.57483808,3041.9,3041.3,0.4502]
[1764181096417,0.405504,3041.8,3041.3,0.4502]
[1764181096618,0.405504,3041.8,3041.2,0.1827]
[1764181097003,0.405504,3041.8,3041.3,0.4502]
[1764181097204,6.57483808,3041.9,3041.7,0.4638]
[1764181097403,6.57483808,3041.9,3041.2,0.1827]
[1764181097404,0.405504,3041.8,3041.2,0.1827]
[1764181097845,0.405504,3041.6,3041.2,0.1827]
[1764181098607,3.2876352,3041.7,3041.5,0.4638]
[1764181098807,3.2876352,3041.7,3041.6,0.914]
[1764181099408,0.72559411,3042.2,3041.6,0.914]
[1764181099636,0.72559411,3042.2,3042.1,0.6571]
[1764181100003,4.01268897,3042.2,3042.1,0.6571]
[1764181100208,4.41819297,3042.2,3042.1,0.6571]
[1764181100415,4.41819297,3042.2,3042.1,0.1933]
[1764181101042,3.28709486,3042.2,3042.1,1.1073]
[1764181101657,3.28709486,3042.2,3042.1,0.6571]
[1764181101862,3.28709486,3042.2,3042.1,0.1933]
[1764181102155,0.405504,3041.9,3041.2,0.6329]
[1764181102366,0.405504,3041.9,3041.3,0.4502]
[1764181102659,0.405504,3041.9,3041.8,0.4638]
[1764181103020,0.405504,3041.9,3041.8,0.914]
[1764181103216,6.57462194,3042.0,3041.8,0.914]
[1764181103417,3.28697393,3042.4,3041.9,0.914]
[1764181103724,0.405504,3042.3,3041.9,0.4638]
[1764181103924,0.405504,3042.3,3042.0,0.4502]
[1764181104116,0.405504,3042.1,3042.0,0.4502]
[1764181104320,0.405504,3042.1,3041.9,0.4638]
[1764181104321,0.405504,3042.1,3041.7,0.001]
[1764181104658,0.405504,3042.1,3041.8,0.4502]
[1764181104952,0.405504,3042.1,3041.7,0.001]
[1764181105262,0.405504,3042.1,3041.7,0.4512]
[1764181105424,0.405504,3042.1,3041.7,0.001]
[1764181106256,0.405504,3041.9,3041.7,0.001]
[1764181106747,0.618704,3041.8,3041.7,0.001]
[1764181107852,1.25868369,3041.8,3041.7,0.001]
[1764181108251,13.87805712,3041.8,3041.7,0.001]
[1764181108455,13.87805712,3041.8,3041.4,0.001]
[1764181108456,17.33805712,3041.8,3041.4,0.001]
[1764181108658,17.33805712,3041.8,3039.7,0.4502]
[1764181108659,1.13109811,3040.7,3039.7,0.4502]
[1764181108858,0.405504,3040.5,3039.7,0.4502]
[1764181109026,0.405504,3040.3,3039.7,0.4502]
[1764181109366,0.405504,3040.3,3039.0,0.3763]
[1764181109654,0.405504,3040.3,3039.3,0.4502]
[1764181109864,0.098,3040.9,3040.2,0.1933]
[1764181110159,1.13109811,3040.5,3040.2,0.1933]
[1764181110326,0.405504,3040.3,3040.2,0.1933]
[1764181110733,0.72559411,3040.5,3040.2,0.1933]
[1764181110734,0.405504,3040.5,3040.2,0.1933]
[1764181111252,6.57700537,3040.9,3040.4,0.4638]
[1764181111758,9.86551063,3040.9,3040.2,0.1933]
[1764181111926,0.405504,3040.7,3040.2,0.1933]
[1764181112142,0.405504,3040.5,3040.2,0.1933]
[1764181112328,1.13109811,3040.3,3039.5,0.4502]
[1764181112554,0.405504,3040.1,3039.5,0.4502]
[1764181112754,0.405504,3040.2,3039.5,0.4502]
[1764181112956,0.405504,3040.2,3040.1,0.6571]
[1764181113227,0.405504,3040.3,3039.5,0.4502]
[1764181113438,0.405504,3040.3,3039.5,0.84563951]
[1764181113659,0.405504,3040.3,3039.5,0.4502]
[1764181113956,0.405504,3040.3,3039.6,0.4502]
[1764181114164,3.28893274,3040.5,3040.2,0.6571]
[1764181114366,3.28791775,3041.5,3040.2,0.6571]
[1764181114367,0.405504,3040.8,3040.2,0.1933]
[1764181114581,0.30650335,3040.7,3040.2,0.6435]
[1764181114733,6.57635144,3041.2,3040.8,0.4638]
[1764181115069,0.30646446,3041.1,3040.8,0.4638]
[1764181115237,0.405504,3041.1,3040.8,0.4638]
[1764181115636,9.86452716,3041.2,3040.8,0.4638]
[1764181115840,3.28817572,3041.2,3041.1,0.1933]
[1764181116033,3.28817572,3041.2,3040.9,0.1933]
[1764181116034,6.8827998,3041.2,3040.9,0.1933]
[1764181116226,3.28806937,3041.3,3040.9,0.1933]
[1764181116428,0.30648461,3041.2,3040.6,0.6435]
[1764181116731,0.30648692,3041.1,3040.6,0.6435]
[1764181116931,0.30648692,3041.0,3040.6,0.6435]
[1764181117163,0.30648692,3040.9,3040.6,0.1933]
[1764181117336,0.30648692,3040.8,3040.6,0.1933]
[1764181117530,0.405504,3041.2,3040.6,0.1933]
[1764181117833,0.30650295,3041.1,3040.7,0.4638]
[1764181118033,0.30650295,3041.0,3040.8,0.4502]
[1764181118272,3.59500306,3040.9,3040.8,0.4502]
[1764181118664,3.59500306,3040.9,3040.8,0.914]
[1764181118840,3.59499465,3040.9,3040.8,0.914]
[1764181119866,3.59499465,3040.9,3040.8,0.4638]
[1764181120264,3.59499465,3040.9,3040.8,0.4648]
[1764181120680,4.72609276,3040.9,3040.8,0.001]
[1764181121168,4.72609276,3040.9,3040.8,0.4648]
[1764181121486,3.59499465,3040.9,3040.8,0.915]
[1764181121968,3.28820269,3041.2,3040.8,0.915]
[1764181121969,3.69367972,3041.2,3040.8,0.915]
[1764181122266,3.28839197,3041.0,3040.9,0.4502]
[1764181122567,3.59483225,3041.0,3040.9,0.914]
[1764181123071,0.30644028,3041.0,3040.9,0.914]
[1764181123240,0.002,3041.4,3040.9,0.914]
[1764181123445,3.28995949,3041.4,3041.3,0.4638]
[1764181123672,3.59638532,3041.4,3041.3,0.4638]
[1764181123853,3.59638532,3041.4,3041.3,0.914]
[1764181124257,0.30842583,3041.4,3041.3,0.914]
[1764181124464,0.002,3041.4,3041.3,0.914]
[1764181124958,3.28995949,3041.4,3041.3,0.914]
[1764181125160,3.28995949,3041.4,3041.3,0.4638]
[1764181125377,6.57791898,3041.4,3040.9,0.4816]
[1764181126079,0.30648091,3041.3,3040.8,0.215]
[1764181126253,0.30648091,3041.2,3040.8,0.215]
[1764181126459,6.57678394,3041.0,3040.8,0.215]
[1764181127864,6.57678394,3041.0,3040.8,0.001]
[1764181128078,0.30658484,3040.9,3040.8,0.001]
[1764181128267,0.71208884,3040.9,3040.8,0.001]
[1764181128575,4.21378895,3040.9,3040.8,0.001]
[1764181129485,4.00058895,3040.9,3040.8,0.001]
[1764181130773,4.21378895,3040.9,3040.8,0.001]
[1764181131209,3.28839197,3041.0,3040.8,0.9577]
[1764181131210,3.28845333,3041.0,3040.8,0.9577]
[1764181131412,3.28808803,3041.3,3040.9,0.4751]
[1764181131575,3.28999967,3041.4,3041.2,0.4751]
[1764181131760,6.57799934,3041.4,3041.1,0.1914]
[1764181132087,0.30667707,3041.3,3040.8,0.001]
[1764181132285,9.86599901,3041.4,3041.1,0.1914]
[1764181132492,0.002,3041.4,3041.1,0.1914]
[1764181133064,0.002,3041.4,3040.8,0.001]
[1764181134391,0.3070479,3041.3,3040.8,0.001]
[1764181134589,9.86452716,3041.2,3040.8,0.001]
[1764181134790,0.72559411,3041.1,3040.8,0.001]
[1764181135195,0.7125998,3041.0,3040.8,0.001]
[1764181135496,0.405504,3041.1,3040.9,0.9567]
[1764181135693,0.405504,3041.1,3041.0,0.4751]
[1764181135996,0.405504,3041.1,3040.8,0.001]
[1764181136405,6.57635144,3041.2,3041.0,0.4751]
[1764181136580,6.57635144,3041.2,3040.9,0.4816]
[1764181136581,0.72759411,3041.4,3041.1,0.4751]
[1764181136779,0.30729346,3041.3,3040.8,0.001]
[1764181136982,0.72759411,3041.4,3041.0,0.4816]
[1764181137286,0.30729357,3041.3,3041.0,0.4816]
[1764181137481,0.72759411,3041.4,3041.0,0.4816]
[1764181137686,0.30735848,3041.3,3041.0,0.4816]
[1764181137864,0.72759411,3041.4,3041.0,0.4816]
[1764181138070,0.72759411,3041.4,3040.8,0.001]
[1764181138071,0.30735848,3041.3,3040.8,0.001]
[1764181138274,0.72759411,3041.4,3040.8,0.001]
[1764181138574,0.30736025,3041.3,3040.8,0.001]
[1764181138776,0.405504,3041.2,3040.8,0.001]
[1764181139098,0.405504,3041.2,3040.8,0.4826]
[1764181139292,0.405504,3041.2,3040.9,0.4816]
[1764181139799,3.2880676,3041.3,3041.1,0.4751]
[1764181139985,0.002,3041.4,3041.2,0.4751]
[1764181140185,0.002,3041.4,3041.3,0.4751]
[1764181140694,0.002,3041.4,3041.3,0.9567]
[1764181140997,0.002,3041.8,3041.4,13.11245611]
[1764181141196,0.002,3041.8,3041.7,0.4751]
[1764181141697,0.002,3041.8,3041.7,0.9567]
[1764181141900,0.002,3041.8,3041.4,0.72559411]
[1764181142090,0.002,3041.8,3041.1,3.33822412]
[1764181142091,0.002,3041.8,3041.7,0.4751]
[1764181142582,0.002,3041.8,3041.7,0.9567]
[1764181143500,0.002,3041.8,3041.7,0.4751]